fUST/lending_fUST_20250701
["ID","MTS","AMOUNT","RATE_DAILY","PERIOD"]
[368729867,1751332265554,-500.0,0.00021917,2]
[368729868,1751332265563,-500.0,0.00021917,2]
[368729869,1751332265573,-500.0,0.00021917,2]
[368729870,1751332265583,-500.0,0.00021917,2]
[368729871,1751332265592,-500.0,0.00021917,2]
[368729872,1751332265602,-500.0,0.00021917,2]
[368729873,1751332265612,-500.0,0.00021917,2]
[368729874,1751332265622,-500.0,0.00021917,2]
[368729875,1751332265632,-500.0,0.00021917,2]
[368729876,1751332265642,-151.0,0.00021918,2]
[368729877,1751332265652,-151.0,0.00021918,2]
[368729878,1751332265662,-151.0,0.00021918,2]
[368729879,1751332265672,-151.0,0.00021918,2]
[368729880,1751332265682,-151.0,0.00021918,2]
[368729881,1751332265692,-151.0,0.00021918,2]
[368729882,1751332265702,-151.0,0.00021918,2]
[368729883,1751332265712,-151.0,0.00021918,2]
[368729884,1751332265722,-151.0,0.00021918,2]
[368729885,1751332265732,-151.0,0.00021918,2]
[368729886,1751332265741,-151.575893,0.00021918,2]
[368729887,1751332265751,-252.442198,0.00021918,2]
[368729888,1751332265762,-252.442198,0.00021918,2]
[368729889,1751332265772,-252.442198,0.00021918,2]
[368729890,1751332265781,-252.442198,0.00021918,2]
[368729891,1751332265791,-252.442198,0.00021918,2]
[368729892,1751332265800,-252.442198,0.00021918,2]
[368729893,1751332265809,-252.442198,0.00021918,2]
[368729894,1751332265819,-252.442198,0.00021918,2]
[368729895,1751332265828,-252.442198,0.00021918,2]
[368729896,1751332265838,-252.442198,0.00021918,2]
[368729897,1751332265848,-252.442198,0.00021918,2]
[368729898,1751332265857,-252.442198,0.00021918,2]
[368729899,1751332265867,-252.442198,0.00021918,2]
[368729900,1751332265877,-252.442198,0.00021918,2]
[368729901,1751332265886,-252.442198,0.00021918,2]
[368729902,1751332265896,-252.442198,0.00021918,2]
[368729903,1751332265905,-252.442198,0.00021918,2]
[368729904,1751332265915,-252.442198,0.00021918,2]
[368729905,1751332265925,-252.442198,0.00021918,2]
[368729906,1751332265935,-252.442208,0.00021918,2]
[368729907,1751332265945,-481.33963642,0.00021918,7]
[368729908,1751332265955,-171.0,0.00021918,2]
[368729909,1751332265964,-171.0,0.00021918,2]
[368729910,1751332265975,-171.0,0.00021918,2]
[368729911,1751332265987,-1142.47664435,0.00021918,2]
[368729912,1751332265997,-150.0,0.00021918,2]
[368729913,1751332266007,-151.0,0.00021918,2]
[368729914,1751332266017,-151.0,0.00021918,2]
[368729915,1751332266026,-302.0,0.00021918,2]
[368729916,1751332266036,-500.0,0.00021973,2]
[368729917,1751332266046,-500.0,0.00021973,2]
[368729918,1751332266055,-500.0,0.00021973,2]
[368729919,1751332266065,-500.0,0.00021973,2]
[368729920,1751332266075,-500.0,0.00021973,2]
[368729921,1751332266085,-500.0,0.00021973,2]
[368729922,1751332266095,-500.0,0.00021973,2]
[368729923,1751332266105,-500.0,0.00021973,2]
[368729924,1751332266115,-500.0,0.00021973,2]
[368729925,1751332266125,-500.0,0.00021973,2]
[368729926,1751332266135,-311.95562575,0.00021973,2]
[368729927,1751332266144,-157.218895,0.00021984,7]
[368729928,1751332266154,-460.0,0.00021984,2]
[368729929,1751332266166,-587.0,0.00021984,2]
[368729930,1751332266176,-20001.71330185,0.00021999,2]
[368729931,1751332266187,-215.98119737,0.00022,8]
[368729932,1751332266197,-500.0,0.00022,8]
[368729933,1751332266208,-500.0,0.00022,8]
[368729934,1751332266219,-376463.6231983,0.00022,5]
[368729935,1751332266400,-460.0,0.0001902,2]
[368729936,1751332266410,-317.84,0.00022,5]
[368729937,1751332266422,-1614.42972313,0.00022,5]
[368729938,1751332266538,-1721.5052032,0.00022,5]
[368729939,1751332266594,-460.57179757,0.00018596,2]
[368729940,1751332266604,-1135447.67488537,0.00022,5]
[368729941,1751332266613,-6376.35988688,0.00022,2]
[368729942,1751332266623,-28517.67213961,0.00022,2]
[368729943,1751332266632,-161.44317001,0.00022,2]
[368729944,1751332266641,-97270.53,0.00022,7]
[368729945,1751332266651,-115368.13,0.00022,2]
[368729946,1751332266660,-1591.94,0.00022,2]
[368729947,1751332266671,-37863.91073517,0.00022,2]
[368729948,1751332266681,-15892.07,0.00022,7]
[368729949,1751332266691,-1000.0,0.00022,2]
[368729950,1751332266700,-150.0,0.00022,30]
[368729951,1751332266710,-6089.65687973,0.00022,7]
[368729952,1751332266722,-2958.24959128,0.00022,7]
[368729957,1751332713901,169809.2326681,0.0001748,2]
[368729962,1751333216384,-321.22198446,0.00018284,2]
[368729963,1751333242161,-517.48254559,0.00018284,2]
[368729964,1751333242185,-226.66470264,0.00018372,2]
[368729965,1751333242207,-500.0,0.00018373,2]
[368729966,1751333242232,-500.0,0.00018373,2]
[368729967,1751333242256,-177.86291908,0.00018373,2]
[368729968,1751333242280,-158.20419,0.00018373,2]
[368729969,1751333242304,-481.47927489,0.00018373,2]
[368729970,1751333242327,-300.0,0.00018373,2]
[368729971,1751333242349,-460.0,0.00018373,2]
[368729972,1751333242371,-151.0,0.00018374,2]
[368729973,1751333242393,-500.0,0.00018374,2]
[368729974,1751333242416,-500.0,0.00018374,2]
[368729975,1751333242439,-690.642,0.00018374,2]
[368729976,1751333242463,-500.0,0.00018374,2]
[368729977,1751333242489,-500.0,0.00018374,2]
[368729978,1751333242511,-5000.0,0.00018374,2]
[368729979,1751333242534,-465.60752438,0.00018374,2]
[368729980,1751333242555,-931.80713625,0.00018374,2]
[368729981,1751333242580,-500.0,0.00018374,2]
[368729982,1751333242602,-207.4,0.00018374,2]
[368729983,1751333242625,-500.0,0.00018374,2]
[368729984,1751333242648,-500.0,0.00018374,2]
[368729985,1751333242672,-500.0,0.00018374,2]
[368729986,1751333242694,-500.0,0.00018374,2]
[368729987,1751333242718,-500.0,0.00018374,2]
[368729988,1751333242741,-500.0,0.00018374,2]
[368729989,1751333242766,-500.0,0.00018374,2]
[368729990,1751333242788,-500.0,0.00018374,2]
[368729991,1751333242811,-500.0,0.00018374,2]
[368729992,1751333242834,-500.0,0.00018374,2]
[368729993,1751333242858,-500.0,0.00018374,2]
[368729994,1751333242882,-500.0,0.00018374,2]
[368729995,1751333242905,-500.0,0.00018374,2]
[368729996,1751333242927,-500.0,0.00018374,2]
[368729997,1751333242950,-500.0,0.00018374,2]
[368729998,1751333242972,-512.8797359,0.00018374,2]
[368729999,1751333245905,-181.94067067,0.00018129,2]
[368730000,1751333248083,-106.46102071,0.00018129,2]
[368730001,1751333248106,-460.0,0.00018373,2]
[368730002,1751333248127,-3078.42795781,0.00018374,2]
[368730006,1751333327106,308.95497711,0.00024953,120]
[368730007,1751333329304,209.96904939,0.00016,2]
[368730008,1751333330901,388.9042451,0.0001,2]
[368730009,1751333345117,-300.0,0.00018372,2]
[368730010,1751333345138,-500.0,0.00018373,2]
[368730011,1751333345160,-4645.773144,0.00018373,2]
[368730012,1751333345181,-460.0,0.00018373,2]
[368730013,1751333345202,-460.0,0.00018373,2]
[368730014,1751333345223,-460.0,0.00018373,2]
[368730015,1751333345244,-460.0,0.00018373,2]
[368730016,1751333345264,-460.0,0.00018373,2]
[368730017,1751333345284,-21408.69230629,0.00018374,2]
[368730018,1751333345305,-8102.69742857,0.00018374,2]
[368730019,1751333363098,-401.52,0.00018373,2]
[368730020,1751333363121,-15119.17987074,0.00018374,2]
[368730021,1751333363143,-717.06,0.00018375,3]
[368730022,1751333363166,-1038.0,0.00018382,2]
[368730023,1751333363189,-553.93545117,0.00018382,2]
[368730024,1751333363211,-500.0,0.00018382,2]
[368730025,1751333363232,-225.00802652,0.00018382,2]
[368730026,1751333363253,-500.0,0.00018382,2]
[368730027,1751333363276,-500.0,0.00018382,2]
[368730028,1751333363296,-500.0,0.00018382,2]
[368730029,1751333363317,-272.84984604,0.00018382,2]
[368730030,1751333363339,-383.54370293,0.00018382,2]
[368730031,1751333363360,-500.0,0.00018382,2]
[368730032,1751333363382,-500.0,0.00018382,2]
[368730033,1751333363403,-500.0,0.00018382,2]
[368730034,1751333363424,-500.0,0.00018382,2]
[368730035,1751333363446,-500.0,0.00018382,2]
[368730036,1751333363467,-283.17315113,0.00018382,2]
[368730037,1751333363488,-500.0,0.00018382,2]
[368730038,1751333363510,-500.0,0.00018382,2]
[368730039,1751333363535,-500.0,0.00018382,2]
[368730040,1751333363559,-500.0,0.00018382,2]
[368730041,1751333363579,-292.43562797,0.00018382,2]
[368730042,1751333363604,-500.0,0.00018382,2]
[368730043,1751333363627,-500.0,0.00018382,2]
[368730044,1751333363647,-545.79553239,0.00018382,2]
[368730045,1751333363669,-500.0,0.00018382,2]
[368730046,1751333363691,-500.0,0.00018382,2]
[368730047,1751333363712,-500.0,0.00018382,2]
[368730048,1751333363733,-500.0,0.00018382,2]
[368730049,1751333363753,-500.0,0.00018382,2]
[368730050,1751333363773,-493.48440354,0.00018382,2]
[368730051,1751333363795,-500.0,0.00018382,2]
[368730052,1751333363816,-500.0,0.00018382,2]
[368730053,1751333363837,-353.7245542,0.00018382,2]
[368730054,1751333363859,-500.0,0.00018382,2]
[368730055,1751333363881,-500.0,0.00018382,2]
[368730056,1751333363903,-378.31731511,0.00018382,2]
[368730057,1751333363925,-500.0,0.00018382,2]
[368730058,1751333363948,-500.0,0.00018382,2]
[368730059,1751333363972,-500.0,0.00018382,2]
[368730060,1751333363996,-500.0,0.00018382,2]
[368730061,1751333364017,-500.0,0.00018382,2]
[368730062,1751333364038,-500.0,0.00018382,2]
[368730063,1751333364060,-500.0,0.00018382,2]
[368730064,1751333364093,-500.0,0.00018382,2]
[368730065,1751333364126,-500.0,0.00018382,2]
[368730066,1751333364152,-342.98854242,0.00018382,2]
[368730067,1751333364184,-259.02372106,0.00018382,2]
[368730068,1751333364215,-500.0,0.00018382,2]
[368730069,1751333364248,-500.0,0.00018382,2]
[368730070,1751333364278,-497.0,0.00018382,2]
[368730071,1751333364307,-500.0,0.00018382,2]
[368730072,1751333364335,-460.0,0.00018383,2]
[368730073,1751333364362,-460.0,0.00018383,2]
[368730074,1751333364391,-460.0,0.00018383,2]
[368730075,1751333364421,-460.0,0.00018383,2]
[368730076,1751333364445,-460.0,0.00018383,2]
[368730077,1751333364471,-460.0,0.00018383,2]
[368730078,1751333364500,-460.0,0.00018383,2]
[368730079,1751333364531,-460.0,0.00018383,2]
[368730080,1751333364561,-460.0,0.00018383,2]
[368730081,1751333364590,-460.0,0.00018383,2]
[368730082,1751333364617,-460.0,0.00018383,2]
[368730083,1751333364640,-588.95,0.00018383,2]
[368730084,1751333364668,-466.63,0.00018383,2]
[368730085,1751333364700,-460.0,0.00018383,2]
[368730086,1751333364724,-460.0,0.00018383,2]
[368730087,1751333364750,-460.0,0.00018383,2]
[368730088,1751333364776,-460.0,0.00018383,2]
[368730089,1751333364800,-483.63,0.00018383,2]
[368730090,1751333364825,-652.35,0.00018383,2]
[368730091,1751333364850,-338.96,0.00018383,2]
[368730092,1751333364876,-460.0,0.00018383,2]
[368730093,1751333364902,-460.0,0.00018383,2]
[368730094,1751333364926,-460.0,0.00018383,2]
[368730095,1751333364951,-460.0,0.00018383,2]
[368730096,1751333364996,-460.0,0.00018383,2]
[368730097,1751333365049,-460.0,0.00018383,2]
[368730098,1751333365101,-460.0,0.00018383,2]
[368730099,1751333365155,-1191.69,0.00018383,2]
[368730100,1751333365191,-460.0,0.00018383,2]
[368730101,1751333365218,-460.0,0.00018383,2]
[368730102,1751333365245,-460.0,0.00018383,2]
[368730103,1751333365272,-529.24,0.00018383,2]
[368730104,1751333365299,-460.0,0.00018383,2]
[368730105,1751333365328,-242.43,0.00018383,2]
[368730106,1751333365363,-460.0,0.00018383,2]
[368730107,1751333365410,-1043.15,0.00018383,2]
[368730108,1751333365444,-460.0,0.00018383,2]
[368730109,1751333365477,-1301.04,0.00018383,2]
[368730110,1751333365508,-460.0,0.00018383,2]
[368730111,1751333365546,-460.0,0.00018383,2]
[368730112,1751333365577,-460.0,0.00018383,2]
[368730113,1751333365609,-460.0,0.00018383,2]
[368730114,1751333365635,-460.0,0.00018383,2]
[368730115,1751333365661,-460.0,0.00018383,2]
[368730116,1751333365868,-468.23,0.00018383,2]
[368730117,1751333365891,-155.856,0.00018383,2]
[368730118,1751333365915,-460.0,0.00018383,2]
[368730119,1751333365937,-460.0,0.00018383,2]
[368730120,1751333365965,-1360.87,0.00018383,2]
[368730121,1751333365987,-531.45,0.00018383,2]
[368730122,1751333366010,-1189.69,0.00018383,2]
[368730123,1751333366033,-190.95,0.00018383,2]
[368730124,1751333366055,-460.0,0.00018383,2]
[368730125,1751333366077,-1804.67,0.00018383,2]
[368730126,1751333366099,-460.0,0.00018383,2]
[368730127,1751333366121,-154.43,0.00018383,2]
[368730128,1751333366141,-460.0,0.00018383,2]
[368730129,1751333366162,-460.0,0.00018383,2]
[368730130,1751333366185,-586.99,0.00018383,2]
[368730131,1751333366207,-460.0,0.00018383,2]
[368730132,1751333366230,-460.0,0.00018383,2]
[368730133,1751333366252,-460.0,0.00018383,2]
[368730134,1751333366274,-460.0,0.00018383,2]
[368730135,1751333366297,-637.8,0.00018383,2]
[368730136,1751333366319,-597.48396974,0.00018383,2]
[368730137,1751333366342,-460.0,0.00018383,2]
[368730138,1751333366365,-625.4,0.00018383,2]
[368730139,1751333366387,-460.0,0.00018383,2]
[368730140,1751333366409,-460.0,0.00018383,2]
[368730141,1751333366431,-460.0,0.00018383,2]
[368730142,1751333366452,-460.0,0.00018383,2]
[368730143,1751333366473,-500.0,0.00018383,2]
[368730144,1751333366494,-460.0,0.00018383,2]
[368730145,1751333366518,-460.0,0.00018383,2]
[368730146,1751333366547,-460.0,0.00018383,2]
[368730147,1751333366575,-460.0,0.00018383,2]
[368730148,1751333366598,-460.0,0.00018383,2]
[368730149,1751333366621,-460.0,0.00018383,2]
[368730150,1751333366643,-460.0,0.00018384,2]
[368730151,1751333366664,-460.0,0.00018384,2]
[368730152,1751333366686,-595.88975533,0.00018384,2]
[368730153,1751333366710,-460.0,0.00018384,2]
[368730154,1751333366733,-460.0,0.00018384,2]
[368730155,1751333366755,-430.0,0.00018384,2]
[368730156,1751333366776,-460.0,0.00018384,2]
[368730157,1751333366796,-437.25289695,0.00018384,2]
[368730158,1751333404297,314.675354,0.00013699,2]
[368730182,1751333432705,-711.31,0.00018373,2]
[368730183,1751333432714,-460.0,0.00018373,2]
[368730184,1751333432724,-463.16904811,0.00018373,2]
[368730185,1751333432734,-465.22672507,0.00018373,2]
[368730186,1751333432743,-316.14813155,0.00018373,2]
[368730187,1751333432754,-461.81948516,0.00018373,2]
[368730188,1751333432764,-572.32194134,0.00018373,2]
[368730189,1751333432773,-462.8916182,0.00018373,2]
[368730190,1751333432782,-300.0,0.00018382,2]
[368730191,1751333432791,-83.0751408,0.00018382,2]
[368730192,1751333432803,-216.9248592,0.00018382,2]
[368730193,1751333432812,-1200.0,0.00018382,2]
[368730194,1751333432821,-460.0,0.00018383,2]
[368730195,1751333432831,-460.0,0.00018383,2]
[368730196,1751333432840,-460.0,0.00018383,2]
[368730197,1751333432849,-460.0,0.00018383,2]
[368730198,1751333432859,-460.0,0.00018383,2]
[368730199,1751333432868,-460.0,0.00018383,2]
[368730200,1751333432877,-460.0,0.00018383,2]
[368730201,1751333432887,-460.0,0.00018383,2]
[368730202,1751333432897,-459.68096482,0.00018383,2]
[368730203,1751333432906,-460.0,0.00018383,2]
[368730204,1751333432916,-460.0,0.00018383,2]
[368730205,1751333432926,-460.0,0.00018383,2]
[368730206,1751333432936,-460.0,0.00018383,2]
[368730207,1751333432946,-460.0,0.00018383,2]
[368730208,1751333432956,-460.0,0.00018383,2]
[368730209,1751333432966,-460.0,0.00018383,2]
[368730210,1751333432976,-460.0,0.00018383,2]
[368730211,1751333432986,-460.0,0.00018383,2]
[368730212,1751333432996,-460.0,0.00018383,2]
[368730213,1751333433006,-460.0,0.00018383,2]
[368730214,1751333433016,-469.42471523,0.00018383,2]
[368730215,1751333433026,-465.86425142,0.00018383,2]
[368730216,1751333433036,-460.0,0.00018383,2]
[368730217,1751333433046,-543.39331164,0.00018383,2]
[368730218,1751333433058,-37.09694381,0.00018383,2]
[368730219,1751333433071,-422.90305619,0.00018383,2]
[368730220,1751333433081,-460.43856971,0.00018383,2]
[368730221,1751333433091,-460.0,0.00018383,2]
[368730222,1751333433101,-460.0,0.00018383,2]
[368730223,1751333433111,-460.0,0.00018383,2]
[368730224,1751333433121,-462.35214075,0.00018383,2]
[368730225,1751333433132,-467.40129056,0.00018383,2]
[368730226,1751333433142,-464.7994095,0.00018383,2]
[368730227,1751333433152,-460.0,0.00018383,2]
[368730228,1751333433161,-460.0,0.00018383,2]
[368730229,1751333433172,-462.68154683,0.00018383,2]
[368730230,1751333433182,-460.0,0.00018383,2]
[368730231,1751333433192,-22.74710305,0.00018384,2]
[368730232,1751333433203,-460.0,0.00018384,2]
[368730233,1751333433214,-461.15268343,0.00018384,2]
[368730234,1751333433225,-460.0,0.00018384,2]
[368730235,1751333433236,-460.0,0.00018384,2]
[368730236,1751333433247,-460.0,0.00018384,2]
[368730237,1751333433258,-460.0,0.00018384,2]
[368730238,1751333433269,-460.0,0.00018384,2]
[368730239,1751333433285,-460.0,0.00018384,2]
[368730240,1751333433296,-460.0,0.00018384,2]
[368730241,1751333433308,-460.0,0.00018384,2]
[368730242,1751333433319,-460.0,0.00018384,2]
[368730243,1751333433329,-251.26015071,0.00018384,2]
[368730244,1751333433339,-460.0,0.00018384,2]
[368730245,1751333433350,-460.0,0.00018384,2]
[368730246,1751333433361,-460.0,0.00018384,2]
[368730247,1751333433372,-460.0,0.00018384,2]
[368730248,1751333433382,-460.0,0.00018384,2]
[368730249,1751333433393,-460.0,0.00018384,2]
[368730250,1751333433403,-460.0,0.00018384,2]
[368730251,1751333433413,-460.0,0.00018384,2]
[368730252,1751333433423,-460.0,0.00018384,2]
[368730253,1751333433434,-460.0,0.00018384,2]
[368730254,1751333433444,-542.91629727,0.00018384,2]
[368730255,1751333433455,-460.0,0.00018384,2]
[368730256,1751333433466,-460.0,0.00018384,2]
[368730257,1751333433476,-460.0,0.00018384,2]
[368730258,1751333433486,-460.0,0.00018384,2]
[368730259,1751333433496,-460.0,0.00018384,2]
[368730260,1751333433505,-460.0,0.00018384,2]
[368730261,1751333433515,-460.0,0.00018384,2]
[368730262,1751333433526,-460.0,0.00018384,2]
[368730263,1751333433539,-460.0,0.00018384,2]
[368730264,1751333433549,-460.0,0.00018384,2]
[368730265,1751333433558,-460.0,0.00018384,2]
[368730266,1751333433568,-460.0,0.00018384,2]
[368730267,1751333433577,-460.0,0.00018384,2]
[368730268,1751333433587,-460.0,0.00018384,2]
[368730269,1751333433607,-460.0,0.00018384,2]
[368730270,1751333433620,-460.0,0.00018384,2]
[368730271,1751333433631,-460.0,0.00018384,2]
[368730272,1751333433641,-460.0,0.00018384,2]
[368730273,1751333433651,-460.0,0.00018384,2]
[368730274,1751333433662,-460.0,0.00018384,2]
[368730275,1751333433673,-460.0,0.00018384,2]
[368730276,1751333433684,-526.35328045,0.00018384,2]
[368730277,1751333433693,-460.0,0.00018384,2]
[368730278,1751333433704,-460.0,0.00018384,2]
[368730279,1751333433715,-460.0,0.00018384,2]
[368730280,1751333433725,-460.0,0.00018384,2]
[368730281,1751333433735,-460.0,0.00018384,2]
[368730282,1751333433745,-460.0,0.00018384,2]
[368730283,1751333433755,-460.0,0.00018384,2]
[368730284,1751333433766,-460.0,0.00018384,2]
[368730285,1751333433777,-460.0,0.00018384,2]
[368730286,1751333433787,-460.0,0.00018384,2]
[368730287,1751333433797,-460.0,0.00018384,2]
[368730288,1751333433807,-460.0,0.00018384,2]
[368730289,1751333433817,-460.0,0.00018384,2]
[368730290,1751333433828,-460.0,0.00018384,2]
[368730291,1751333433839,-460.0,0.00018384,2]
[368730292,1751333433849,-460.0,0.00018384,2]
[368730293,1751333433859,-460.0,0.00018384,2]
[368730294,1751333433869,-503.16578317,0.00018384,2]
[368730295,1751333433932,-760.23421683,0.00018384,2]
[368730296,1751333433942,-460.0,0.00018384,2]
[368730297,1751333433953,-460.0,0.00018384,2]
[368730298,1751333433962,-460.0,0.00018384,2]
[368730299,1751333433973,-460.0,0.00018384,2]
[368730300,1751333433983,-525.7,0.00018384,2]
[368730301,1751333433994,-460.0,0.00018384,2]
[368730302,1751333434004,-1090.55,0.00018384,2]
[368730303,1751333434014,-1869.51,0.00018384,2]
[368730304,1751333434024,-460.0,0.00018384,2]
[368730305,1751333434034,-460.0,0.00018384,2]
[368730306,1751333434044,-460.0,0.00018384,2]
[368730307,1751333434054,-198.75556703,0.00018384,2]
[368730308,1751333434065,-460.0,0.00018384,2]
[368730309,1751333434075,-435.56463744,0.00018384,2]
[368730310,1751333434086,-460.0,0.00018384,2]
[368730311,1751333434095,-2252.18,0.00018384,2]
[368730312,1751333434105,-645.45,0.00018384,2]
[368730313,1751333434116,-413.70133724,0.00018384,2]
[368730314,1751333434127,-462.78024552,0.00018384,2]
[368730315,1751333434138,-349.6896872,0.00018384,2]
[368730316,1751333434148,-463.87910943,0.00018384,2]
[368730317,1751333434158,-761.24,0.00018384,2]
[368730318,1751333434170,-33766.86980575,0.00018385,2]
[368730319,1751333434184,-254.87,0.00018385,2]
[368730437,1751333444572,-461.62499264,0.00018373,2]
[368730438,1751333444583,-460.0,0.00018383,2]
[368730439,1751333444592,-462.56251256,0.00018383,2]
[368730440,1751333444602,-466.56868082,0.00018383,2]
[368730441,1751333444613,-463.39594086,0.00018383,2]
[368730442,1751333444623,-50.4067652,0.00018383,2]
[368730443,1751333444759,-409.5932348,0.00018383,2]
[368730444,1751333444768,-460.0,0.00018383,2]
[368730445,1751333444779,-462.26862178,0.00018383,2]
[368730446,1751333444789,-58.30906102,0.00018383,2]
[368730447,1751333444801,-401.69093898,0.00018383,2]
[368730448,1751333444812,-137.29256444,0.00018384,2]
[368730449,1751333444824,-221.7199249,0.00018384,2]
[368730450,1751333444834,-318.12629446,0.00018384,2]
[368730451,1751333444847,-23.19689731,0.00018384,2]
[368730452,1751333444856,-383.26296915,0.00018384,2]
[368730453,1751333444868,-116.73703085,0.00018384,2]
[368730454,1751333444878,-170.63194485,0.00018384,2]
[368730455,1751333444888,-212.80605402,0.00018384,2]
[368730456,1751333444897,-460.0,0.00018384,2]
[368730457,1751333444907,-901.38,0.00018384,2]
[368730458,1751333444917,-16268.95336892,0.00018385,2]
[368730459,1751333444927,-460.0,0.00018472,2]
[368730460,1751333444937,-460.0,0.00018472,2]
[368730461,1751333444948,-460.0,0.00018472,2]
[368730462,1751333444958,-460.0,0.00018472,2]
[368730463,1751333444968,-460.0,0.00018472,2]
[368730464,1751333444979,-460.0,0.00018472,2]
[368730465,1751333444988,-460.0,0.00018472,2]
[368730466,1751333444997,-460.0,0.00018472,2]
[368730467,1751333445007,-460.0,0.00018472,2]
[368730468,1751333445016,-460.0,0.00018472,2]
[368730469,1751333445027,-460.0,0.00018472,2]
[368730470,1751333445037,-460.0,0.00018472,2]
[368730471,1751333445047,-460.0,0.00018472,2]
[368730472,1751333445056,-460.0,0.00018472,2]
[368730473,1751333445066,-460.0,0.00018472,2]
[368730474,1751333445075,-460.0,0.00018472,2]
[368730475,1751333445085,-460.0,0.00018472,2]
[368730476,1751333445095,-460.0,0.00018472,2]
[368730477,1751333445105,-460.0,0.00018472,2]
[368730478,1751333445115,-460.0,0.00018472,2]
[368730479,1751333445125,-562.97,0.00018472,2]
[368730480,1751333445135,-460.0,0.00018472,2]
[368730481,1751333445145,-500.0,0.00018472,2]
[368730482,1751333445155,-460.0,0.00018472,2]
[368730483,1751333445166,-460.0,0.00018472,2]
[368730484,1751333445176,-512.14,0.00018472,2]
[368730485,1751333445187,-460.0,0.00018472,2]
[368730486,1751333445197,-460.0,0.00018472,2]
[368730487,1751333445207,-460.0,0.00018472,2]
[368730488,1751333445217,-460.0,0.00018472,2]
[368730489,1751333445228,-460.0,0.00018472,2]
[368730490,1751333445238,-460.0,0.00018472,2]
[368730491,1751333445248,-460.0,0.00018472,2]
[368730492,1751333445257,-460.0,0.00018472,2]
[368730493,1751333445267,-460.0,0.00018472,2]
[368730494,1751333445277,-460.0,0.00018472,2]
[368730495,1751333445286,-460.0,0.00018472,2]
[368730496,1751333445296,-460.0,0.00018472,2]
[368730497,1751333445307,-460.0,0.00018472,2]
[368730498,1751333445317,-460.0,0.00018472,2]
[368730499,1751333445326,-460.0,0.00018472,2]
[368730500,1751333445336,-460.0,0.00018472,2]
[368730501,1751333445346,-460.0,0.00018472,2]
[368730502,1751333445356,-331.42051478,0.00018493,2]
[368730503,1751333445367,-460.0,0.00018493,2]
[368730504,1751333445377,-460.0,0.00018493,2]
[368730505,1751333445386,-460.0,0.00018493,2]
[368730506,1751333445396,-460.0,0.00018493,2]
[368730507,1751333445407,-460.0,0.00018493,2]
[368730508,1751333445417,-460.0,0.00018493,2]
[368730509,1751333445427,-460.0,0.00018493,2]
[368730510,1751333445437,-460.0,0.00018493,2]
[368730511,1751333445447,-460.0,0.00018493,2]
[368730512,1751333445457,-467.72,0.00018493,2]
[368730513,1751333445466,-480.97,0.00018493,2]
[368730514,1751333445476,-558.2,0.00018493,2]
[368730515,1751333445486,-493.75,0.00018493,2]
[368730516,1751333445495,-490.6270276,0.00018493,2]
[368730517,1751333445504,-460.0,0.00018493,2]